bitfinex/quotes_ETHUSD_20241212
["timestamp","ask_amount","ask_price","bid_price","bid_amount"]
[1734034964592,2.58518,3868.2,3866.7,0.7539]
[1734034964896,3.98886433,3868.1,3866.7,0.7539]
[1734034965193,2.58585,3867.2,3866.7,0.7539]
[1734034965766,3.0,3867.9,3866.7,0.7539]
[1734034965988,2.58599,3867.0,3866.7,0.7539]
[1734034966282,2.5864,3866.4,3866.2,0.7539]
[1734034966500,2.58626,3866.6,3866.2,0.7539]
[1734034966671,2.58609,3866.9,3866.2,0.7539]
[1734034966672,2.58639,3866.4,3866.2,0.7539]
[1734034967270,2.58609,3866.9,3866.2,0.7539]
[1734034967493,0.258609,3866.8,3866.2,0.7539]
[1734034967703,2.58645,3866.3,3866.2,0.7539]
[1734034967913,0.258609,3866.8,3866.2,0.7539]
[1734034968060,2.58624,3866.7,3866.2,0.7539]
[1734034968258,2.91914242,3867.4,3866.2,0.7539]
[1734034968259,2.58578,3867.3,3866.2,0.7539]
[1734034968594,2.58601,3867.0,3866.2,0.7539]
[1734034968794,2.58606,3866.9,3866.2,0.7539]
[1734034968994,3.8208,3867.7,3866.2,0.7539]
[1734034968995,2.58588,3867.2,3866.2,0.7539]
[1734034969183,2.58592,3867.1,3866.2,0.7539]
[1734034969387,2.58592,3867.1,3866.3,0.282321]
[1734034969615,4.34463007,3867.7,3866.3,0.282321]
[1734034969616,2.58604,3867.0,3866.3,0.282321]
[1734034969773,2.58604,3867.0,3866.2,0.7539]
[1734034970170,2.5863,3866.6,3866.2,0.7539]
[1734034970373,2.58645,3866.3,3866.2,0.7539]
[1734034970625,2.58603,3867.0,3866.2,0.7539]
[1734034970769,2.58632,3866.5,3866.2,0.7539]
[1734034971370,2.58618,3866.7,3866.2,0.7539]
[1734034971674,2.58564,3867.5,3866.2,0.7539]
[1734034971891,2.58625,3866.6,3866.2,0.7539]
[1734034972986,3.0,3867.2,3866.2,0.7539]
[1734034973188,2.58612,3866.8,3866.2,0.7539]
[1734034973411,3.0,3867.3,3866.2,0.7539]
[1734034973720,0.50151183,3867.4,3866.2,0.7539]
[1734034973721,2.58617,3866.8,3866.2,0.7539]
[1734034973876,2.58591,3867.1,3866.2,0.7539]
[1734034974077,2.58623,3866.7,3866.2,0.7539]
[1734034974315,0.7958,3866.7,3865.3,0.7727]
[1734034974518,2.58625,3866.6,3865.3,0.7727]
[1734034974687,2.58644,3866.4,3865.3,0.7727]
[1734034974887,3.0,3866.8,3865.3,0.7727]
[1734034975104,2.58628,3866.6,3865.4,0.8286]
[1734034975392,2.58628,3866.6,3865.5,0.8286]
[1734034975590,2.58628,3866.6,3865.7,0.8286]
[1734034975975,0.258591,3867.0,3865.7,0.8286]
[1734034976335,0.50151183,3867.4,3865.9,0.8286]
[1734034976538,2.58571,3867.5,3866.0,0.8286]
[1734034976688,2.58592,3867.1,3866.0,0.8286]
[1734034977089,2.58604,3867.0,3866.0,0.8286]
[1734034977322,0.8124,3867.7,3866.0,0.8286]
[1734034977323,2.58607,3866.9,3866.0,0.8286]
[1734034977543,2.58619,3866.7,3866.0,0.8286]
[1734034977744,2.844677,3866.9,3866.0,0.8286]
[1734034978040,2.58616,3866.8,3866.0,0.8286]
[1734034978191,2.58618,3866.7,3866.0,0.8286]
[1734034978389,2.58588,3867.2,3866.0,0.8286]
[1734034978627,3.0,3867.1,3865.7,0.7993]
[1734034978828,2.58641,3866.4,3865.7,0.7993]
[1734034979328,2.58612,3866.8,3865.7,0.7993]
[1734034979532,2.58645,3866.3,3865.7,0.7993]
[1734034979700,2.58612,3866.8,3865.7,0.7993]
[1734034979905,2.58598,3867.0,3865.7,0.7993]
[1734034980114,2.58625,3866.6,3865.7,0.7993]
[1734034980430,2.58635,3866.5,3865.7,0.7993]
[1734034981540,2.5862,3866.7,3865.7,0.7993]
[1734034981829,0.892576,3867.0,3865.7,0.7993]
[1734034981830,2.58646,3866.3,3865.7,0.7993]
[1734034982331,2.58659,3866.1,3865.7,0.7993]
[1734034984640,0.258659,3866.0,3865.7,0.7993]
[1734034984842,2.58605,3866.9,3865.7,0.7993]
[1734034985158,2.58653,3866.2,3865.7,0.7993]
[1734034986160,2.58659,3866.1,3865.7,0.7993]
[1734034986363,1.07245219,3866.8,3865.7,0.7993]
[1734034986669,2.58714,3865.3,3864.6,0.7982]
[1734034986824,2.93108645,3866.2,3864.6,0.7982]
[1734034986825,2.58725,3865.1,3864.6,0.7982]
[1734034987027,2.58671,3865.9,3864.6,0.7982]
[1734034987336,2.58745,3864.8,3864.6,0.7982]
[1734034987950,2.58697,3865.6,3864.6,0.7982]
[1734034988267,1.07245219,3865.7,3863.6,1.49733394]
[1734034988268,3.48108645,3865.4,3863.9,0.7738]
[1734034988424,2.58794,3864.1,3863.9,0.7738]
[1734034989035,0.7707,3865.0,3863.9,0.7738]
[1734034989276,2.58792,3864.2,3863.9,0.7738]
[1734034989877,0.7707,3865.0,3863.9,0.7738]
[1734034989878,2.58794,3864.1,3863.9,0.7738]
[1734034990560,2.58799,3864.0,3863.9,0.7738]
[1734034991442,0.32453311,3864.9,3863.9,0.7738]
[1734034991831,2.93108645,3865.0,3863.9,0.7738]
[1734034992031,3.67799524,3865.5,3863.6,1.49733394]
[1734034992032,0.7909,3865.5,3864.1,0.8023]
[1734034992231,4.53976474,3865.8,3864.1,2.07032]
[1734034992232,2.58708,3865.4,3864.1,2.07032]
[1734034992450,2.58708,3865.4,3864.2,0.8023]
[1734034992629,3.37767,3865.9,3864.4,2.07014]
[1734034992630,0.7909,3865.9,3864.4,2.07014]
[1734034992963,2.58693,3865.6,3864.6,0.7986]
[1734034993286,2.58714,3865.3,3864.6,0.7986]
[1734034993487,0.7909,3865.9,3864.6,0.7986]
[1734034993488,2.58719,3865.2,3864.6,0.7986]
[1734034993633,2.58694,3865.6,3864.6,0.7986]
[1734034993832,2.924724,3865.6,3864.6,0.7986]
[1734034994031,2.58719,3865.2,3864.6,0.7986]
[1734034994737,0.337784,3865.6,3864.6,0.7986]
[1734034994931,0.7909,3865.9,3864.6,0.7986]
[1734034994932,2.58706,3865.4,3864.6,0.7986]
[1734034995187,3.37764,3865.9,3864.6,0.7986]
[1734034995188,2.58752,3864.7,3864.6,0.7986]
[1734034995526,2.58722,3865.2,3864.6,0.7986]
[1734034995683,2.58741,3864.9,3864.6,0.7986]
[1734034996204,2.58747,3864.8,3864.6,0.7986]
[1734034997598,2.58738,3865.0,3864.6,0.7986]
[1734034998137,2.58739,3864.9,3864.6,0.7986]
[1734034998493,0.7909,3865.9,3864.6,0.7986]
[1734034998691,1.034461,3866.2,3865.0,2.06984]
[1734034998922,1.034461,3866.2,3865.2,0.8013]
[1734034999133,1.07245219,3866.7,3865.2,0.8013]
[1734034999438,2.58625,3866.6,3865.5,2.06956]
[1734034999596,2.58625,3866.6,3864.6,8.00110645]
[1734034999597,2.93108645,3866.8,3865.6,0.8013]
[1734034999799,1.034333,3866.7,3865.6,0.8013]
[1734035000104,2.58672,3865.9,3865.6,0.8013]
[1734035001148,0.65514695,3866.6,3865.6,0.8013]
[1734035001630,2.58638,3866.4,3865.6,0.8013]
[1734035001841,0.65514695,3866.6,3865.6,0.8013]
[1734035001842,2.58649,3866.3,3865.6,0.8013]
[1734035001988,2.58653,3866.2,3865.6,0.8013]
[1734035002937,2.58631,3866.5,3865.6,0.8013]
[1734035003137,2.58665,3866.0,3865.6,0.8013]
[1734035003734,2.845183,3866.2,3865.6,0.8013]
[1734035003947,1.034291,3866.9,3865.6,0.8013]
[1734035003948,2.58638,3866.4,3865.6,0.8013]
[1734035004113,2.58638,3866.4,3865.6,1.088393]
[1734035004497,1.034291,3866.9,3865.6,1.088393]
[1734035004822,1.034291,3866.9,3865.5,0.7889]
[1734035004823,2.58632,3866.5,3865.5,0.7889]
[1734035005141,2.58638,3866.4,3865.5,0.7889]
[1734035005853,2.58633,3866.5,3865.5,0.7889]
[1734035006919,2.5794768,3866.5,3865.5,0.7889]
[1734035008468,2.5864,3866.4,3865.5,0.7889]
[1734035008619,2.5864,3866.4,3865.6,0.37889]
[1734035008820,2.58626,3866.6,3865.6,0.37889]
[1734035009443,2.58634,3866.5,3865.6,0.37889]
[1734035009642,0.5287836,3867.4,3865.8,0.7636]
[1734035009973,2.58624,3866.7,3865.8,0.7636]
[1734035010634,3.96529345,3867.1,3865.8,0.7636]
[1734035010818,2.58633,3866.5,3865.8,0.7636]
[1734035011671,2.58598,3867.0,3865.8,0.7636]
[1734035011672,3.0,3867.0,3865.8,0.7636]
[1734035011880,2.58637,3866.5,3865.8,0.7636]
[1734035012023,2.58605,3866.9,3865.8,0.7636]
[1734035012217,2.58641,3866.4,3865.8,0.7636]
[1734035012938,2.58647,3866.3,3865.8,0.7636]
[1734035015922,2.58638,3866.4,3865.8,0.7636]
[1734035016566,2.58626,3866.6,3865.8,0.7636]
[1734035016775,1.07245219,3867.2,3865.8,0.7636]
[1734035016922,2.58593,3867.1,3866.0,2.0693]
[1734035017126,1.86385022,3867.3,3866.2,0.813]
[1734035017427,1.86385022,3867.3,3865.2,0.55]
[1734035017428,2.93108645,3867.0,3865.8,0.813]
[1734035017627,2.58671,3865.9,3865.8,0.813]
[1734035018926,2.58648,3866.3,3864.7,0.8107]
[1734035018927,2.58701,3865.5,3864.7,0.8107]
[1734035019329,2.58684,3865.8,3864.7,0.8107]
[1734035019576,2.58684,3865.8,3864.9,0.8107]
[1734035020877,4.00353864,3866.6,3865.1,0.8107]
[1734035020878,2.58637,3866.5,3865.1,0.8107]
[1734035021079,2.93108645,3866.6,3865.1,0.8107]
[1734035021231,0.7994,3866.7,3865.1,0.8107]
[1734035021232,2.58671,3866.0,3865.1,0.8107]
[1734035022279,2.58673,3865.9,3865.1,0.8107]
[1734035022439,2.58679,3865.8,3865.1,0.8107]
[1734035024270,2.58679,3865.8,3865.1,1.19177]
[1734035024576,2.58648,3866.3,3865.1,1.19177]
[1734035024942,2.58671,3866.0,3865.1,1.19177]
[1734035025192,2.34780135,3866.4,3865.2,0.7951]
[1734035025368,2.58662,3866.1,3865.2,0.7951]
[1734035025781,2.58662,3866.1,3865.3,0.02586943]
[1734035025992,0.7994,3866.7,3865.4,0.8055]
[1734035026286,2.58657,3866.2,3865.4,0.8055]
[1734035027569,2.58647,3866.3,3865.4,0.8055]
[1734035028136,2.58654,3866.2,3865.4,0.8055]
[1734035029097,1.07245219,3866.9,3865.5,0.81586743]
[1734035029273,1.60867829,3867.1,3865.5,0.81586743]
[1734035029274,1.07245219,3867.1,3865.5,0.81586743]
[1734035029483,2.34780135,3867.2,3865.6,2.85952]
[1734035029798,2.58606,3866.9,3865.8,0.79]
[1734035029937,4.93392135,3866.8,3865.8,0.79]
[1734035030142,2.58618,3866.7,3865.8,0.79]
[1734035030894,2.34780135,3866.4,3865.8,0.79]
[1734035031384,2.58671,3865.9,3865.8,0.79]
[1734035031879,2.58671,3865.9,3864.8,0.833]
[1734035032042,2.58671,3865.9,3865.0,0.833]
[1734035033301,2.34780135,3866.4,3865.0,0.833]
[1734035033451,0.89035668,3866.3,3865.0,0.833]
[1734035033977,2.58678,3865.9,3865.0,0.833]
[1734035034344,2.34780135,3866.4,3865.0,0.833]
[1734035034543,2.5868,3865.8,3865.0,0.833]
[1734035036344,2.58647,3866.3,3865.0,0.833]
[1734035036578,0.8916083,3866.2,3865.0,0.833]
[1734035036754,2.58678,3865.9,3865.0,0.833]
[1734035038295,2.58667,3866.0,3865.2,0.8086]
[1734035039944,3.42025354,3866.4,3865.2,0.8086]
[1734035039945,2.5865,3866.3,3865.2,0.8086]
[1734035040349,2.58653,3866.2,3865.2,0.8086]
[1734035041807,1.07245219,3866.7,3865.4,0.8077]
[1734035042103,2.5862,3866.7,3865.5,3.0]
[1734035042265,2.5862,3866.7,3865.6,0.61414649]
[1734035042468,0.89452148,3866.6,3865.6,0.61414649]
[1734035042848,1.07245219,3866.8,3865.6,0.61414649]
[1734035043053,1.07245219,3867.2,3866.0,2.06931]
[1734035043296,1.07245219,3867.2,3865.8,4.07184494]
[1734035043297,3.30897402,3867.3,3866.1,0.02585995]
[1734035043455,0.89441896,3867.2,3866.1,1.17810168]
[1734035043668,5.26686048,3867.4,3866.1,2.22408667]
[1734035043868,0.8946959,3867.3,3866.2,5.47440946]
[1734035044192,1.07245219,3867.4,3866.2,4.2242895]
[1734035044378,1.9670257,3867.4,3866.2,4.2242895]
[1734035044553,0.89503822,3867.3,3866.3,0.85176462]
[1734035044748,1.07245219,3867.4,3866.3,5.07614855]
[1734035044749,2.41510767,3867.4,3866.3,5.07614855]
[1734035045004,5.89605962,3867.4,3866.3,0.85176462]
[1734035045157,5.89605962,3867.4,3866.2,4.2242895]
[1734035045158,2.58614,3866.8,3866.4,0.7957]
[1734035045357,2.58615,3866.8,3866.4,0.7957]
[1734035045798,0.89502721,3866.7,3866.4,0.7957]
[1734035045957,2.58639,3866.4,3866.2,1.2242895]
[1734035046477,3.65867219,3866.7,3866.2,1.2242895]
[1734035046681,2.99804393,3866.6,3866.2,1.2242895]
[1734035046999,1.60867829,3866.9,3866.3,0.7567]
[1734035047000,1.07245219,3866.9,3866.3,0.7567]
[1734035047211,1.07245219,3867.2,3866.3,0.7567]
[1734035047507,0.89498644,3867.1,3866.3,0.7567]
[1734035047804,2.5859,3867.2,3866.3,0.7567]
[1734035048319,1.07245219,3867.3,3866.3,0.7567]
[1734035048474,1.34228098,3867.4,3866.4,0.40501795]
[1734035048663,1.07245219,3867.5,3866.5,0.7567]
[1734035048863,2.58588,3867.2,3866.5,0.7567]
[1734035049095,2.23724596,3867.1,3866.5,0.7567]
[1734035049294,2.58616,3866.8,3866.5,0.7567]
[1734035049493,3.04150431,3866.8,3866.5,0.7567]
[1734035050219,3.65843219,3867.1,3866.5,0.7567]
[1734035050387,2.58598,3867.1,3866.5,0.7567]
[1734035050588,2.40647829,3867.4,3866.5,0.7567]
[1734035050589,1.07245219,3867.3,3866.5,0.7567]
[1734035050899,4.82257787,3867.3,3866.5,0.7567]
[1734035051089,2.58585,3867.2,3866.5,0.7567]
[1734035051403,0.89464537,3867.1,3866.5,0.7567]
[1734035051605,3.48058537,3867.1,3866.5,0.7567]
[1734035051789,4.93374135,3867.1,3866.5,0.7567]
[1734035052300,2.58602,3867.0,3866.5,0.7567]
[1734035053273,2.34780135,3867.1,3866.5,0.7567]
[1734035053469,2.58621,3866.7,3866.5,0.7567]
[1734035053690,2.58632,3866.5,3866.1,0.8284]
[1734035054506,4.93398135,3866.7,3866.1,0.8284]
[1734035054865,2.58618,3866.7,3866.1,0.8284]
[1734035055176,3.76227889,3867.1,3866.1,0.8284]
[1734035055378,1.07245219,3867.3,3866.3,0.8189]
[1734035055567,2.41410863,3867.4,3866.3,0.8189]
[1734035055763,2.5859,3867.2,3866.3,0.8189]
[1734035056189,2.58571,3867.4,3866.4,0.02586117]
[1734035056404,2.58571,3867.4,3866.2,0.8189]
[1734035056983,2.58571,3867.4,3866.3,0.8189]
[1734035057180,2.58579,3867.3,3866.3,0.8189]
[1734035057410,2.58579,3867.3,3866.5,0.8189]
[1734035057711,2.58564,3867.6,3866.5,0.8189]
[1734035059190,2.5857,3867.5,3866.5,0.8189]
[1734035059394,2.58571,3867.4,3866.5,0.8189]
[1734035060639,2.58592,3867.1,3866.5,0.8189]
[1734035060996,2.5858,3867.3,3866.5,0.8189]
[1734035061592,2.58586,3867.2,3866.5,0.8189]
[1734035061798,2.58591,3867.2,3866.5,0.8189]
[1734035061999,2.58571,3867.4,3866.5,0.8189]
[1734035062254,2.58571,3867.4,3866.5,0.96598663]
[1734035062601,2.58558,3867.6,3866.5,0.96598663]
[1734035062801,2.58565,3867.5,3866.5,0.96598663]
[1734035063441,2.58553,3867.7,3866.5,0.96598663]
[1734035063743,2.58566,3867.5,3866.5,0.96598663]
[1734035065738,1.07245219,3867.8,3866.5,0.96598663]
[1734035065938,2.34780135,3867.9,3866.5,0.8189]
[1734035065939,2.58625,3866.6,3866.5,0.8189]
[1734035066169,2.58625,3866.6,3865.4,0.13121439]
[1734035066170,2.58625,3866.6,3865.6,0.7659]
[1734035066299,2.34780135,3867.1,3865.6,0.7659]
[1734035066300,2.58679,3865.8,3865.6,0.7659]
[1734035066512,2.58685,3865.7,3865.6,0.7659]
[1734035066716,2.58672,3865.9,3865.6,0.7659]
[1734035068054,1.89535219,3866.5,3865.6,0.7659]
[1734035068220,2.58646,3866.3,3865.6,0.7659]
[1734035068561,2.58625,3866.6,3865.3,2.06969]
[1734035068856,6.54244964,3867.1,3865.8,0.7843]
[1734035068857,2.58612,3866.8,3865.8,0.7843]
[1734035069055,0.7909,3867.2,3865.8,0.7843]
[1734035069259,2.58598,3867.1,3865.8,0.7843]
[1734035069464,2.58598,3867.1,3865.9,0.51362108]
[1734035069634,2.58598,3867.1,3866.0,0.8101]
[1734035069830,2.58598,3867.1,3865.9,0.51362108]
[1734035069831,2.58598,3867.1,3866.2,0.8101]
[1734035070873,1.07245219,3867.7,3866.2,0.8101]
[1734035071051,1.07245219,3867.7,3866.3,0.7653]
[1734035071052,2.58569,3867.5,3866.3,0.7653]
[1734035071222,2.34780135,3867.5,3866.3,0.7653]
[1734035071423,2.58603,3867.0,3866.3,0.7653]
[1734035072437,2.58622,3866.7,3866.3,0.7653]
[1734035072642,2.58628,3866.6,3866.3,0.7653]
[1734035073937,2.58598,3867.0,3866.3,0.7653]
[1734035074147,2.58627,3866.6,3866.3,0.7653]
[1734035075949,2.58613,3866.8,3866.3,0.7653]
[1734035076277,2.34780135,3867.1,3866.3,0.7653]
[1734035076457,2.58618,3866.7,3866.3,0.7653]
[1734035076861,2.34780135,3867.1,3866.3,0.7653]
[1734035077060,2.58607,3866.9,3866.3,0.7653]
[1734035077390,2.58611,3866.8,3866.3,0.7653]
[1734035078368,0.67720635,3867.0,3866.3,0.7653]
[1734035078369,2.58619,3866.7,3866.3,0.7653]
[1734035078809,0.67720635,3867.0,3866.3,0.7653]
[1734035078961,2.5861,3866.9,3866.3,0.7653]
[1734035079405,1.07245219,3867.3,3866.3,0.7653]
[1734035079572,2.58598,3867.0,3866.3,0.7653]
[1734035081202,0.92271135,3867.3,3866.3,0.7653]
[1734035081365,1.07245219,3867.1,3866.3,0.7653]
[1734035081576,2.58605,3866.9,3866.3,0.7653]
[1734035082307,1.07245219,3867.2,3866.3,0.7653]
[1734035082515,2.58615,3866.8,3866.3,0.7653]
[1734035083044,2.58627,3866.6,3866.3,0.7653]
[1734035083190,2.58633,3866.5,3866.3,0.7653]
[1734035085391,2.5862,3866.7,3866.3,0.7653]
[1734035086086,2.58629,3866.6,3866.3,0.7653]
[1734035088094,2.58608,3866.9,3866.3,0.7653]
[1734035088536,2.58296639,3866.9,3866.3,0.7653]
[1734035088936,1.07245219,3867.1,3866.3,0.7653]
[1734035089156,0.89546519,3867.1,3866.3,0.7653]
[1734035089355,2.58618,3866.7,3866.3,0.7653]
[1734035090444,2.58608,3866.9,3866.3,0.7653]
[1734035090613,2.58612,3866.8,3866.3,0.7653]
[1734035091358,2.58614,3866.8,3866.3,0.7653]
[1734035091556,1.07245219,3867.0,3866.3,0.7653]
[1734035091842,2.58591,3867.1,3866.3,0.7653]
[1734035092016,2.58591,3867.1,3866.3,0.94901449]
[1734035092217,3.65825219,3867.3,3866.3,0.94901449]
[1734035092421,2.23871648,3867.2,3866.3,0.94901449]
[1734035092623,0.89548659,3867.2,3866.3,0.94901449]
[1734035092974,2.5858,3867.3,3866.4,0.8233]
[1734035093180,2.5858,3867.3,3866.5,0.41480194]
[1734035093310,2.5858,3867.3,3866.6,0.8233]
[1734035095121,1.07245219,3867.4,3866.6,0.8233]
[1734035095337,2.58585,3867.2,3866.6,0.8233]
[1734035096408,1.07245219,3867.3,3866.6,0.8233]
[1734035096622,2.58592,3867.1,3866.6,0.8233]
[1734035099419,2.58585,3867.2,3866.6,0.8233]
[1734035100256,1.07245219,3867.4,3866.6,0.8233]
[1734035100466,3.42025354,3867.1,3866.1,0.776]
[1734035100764,2.58619,3866.7,3866.1,0.776]
[1734035101056,2.68113048,3867.1,3866.2,0.776]
[1734035101219,2.58583,3867.3,3866.3,0.776]
[1734035101415,1.07245219,3867.5,3866.5,0.776]
[1734035101619,2.58573,3867.4,3866.5,0.776]
[1734035102219,1.07245219,3867.6,3866.5,0.776]
[1734035102566,2.58595,3867.1,3866.5,0.776]
[1734035103078,1.07245219,3867.5,3866.5,0.776]
[1734035103224,2.58612,3866.8,3866.5,0.776]
[1734035103529,2.58617,3866.8,3866.5,0.776]
[1734035104262,1.07245219,3867.1,3865.7,3.20415962]
[1734035104263,1.07245219,3867.0,3865.7,3.20415962]
[1734035104462,4.55389767,3867.0,3865.8,1.99835534]
[1734035104640,3.31111589,3866.9,3865.8,0.776]
[1734035104962,2.58657,3866.2,3865.8,0.776]
[1734035105317,2.58664,3866.1,3865.8,0.776]
[1734035106765,2.58666,3866.0,3865.8,0.776]
[1734035110480,2.58671,3865.9,3865.8,0.776]
[1734035110679,2.5868,3865.8,3865.2,0.7526]
[1734035114298,2.58666,3866.0,3865.2,0.7526]
[1734035115493,1.07245219,3866.5,3865.3,0.55]
[1734035115693,2.39377829,3866.7,3865.6,0.8063]
[1734035115694,2.58619,3866.7,3865.6,0.8063]
[1734035115903,2.58619,3866.7,3865.7,1.22027255]
[1734035116192,2.58619,3866.7,3865.8,1.54246875]
[1734035117351,2.58619,3866.7,3865.9,1.22001546]
[1734035117550,2.58619,3866.7,3865.8,1.54246875]
[1734035118100,2.58615,3866.8,3865.8,0.8063]
[1734035119188,2.5861,3866.9,3865.8,0.8063]
[1734035119373,2.5861,3866.9,3866.0,0.8063]
[1734035119555,2.5861,3866.9,3866.1,0.02586134]
[1734035119757,3.95647964,3867.5,3866.3,2.87545]
[1734035119758,1.07245219,3867.5,3866.3,2.87545]
[1734035119963,1.07245219,3867.5,3866.4,2.05123409]
[1734035120260,2.58567,3867.5,3866.5,0.8063]
[1734035120811,2.58567,3867.5,3866.5,1.3264124]
[1734035121678,1.07245219,3867.9,3866.6,0.8063]
[1734035121914,2.58558,3867.7,3866.7,0.13264124]
[1734035122076,4.76209094,3868.0,3866.7,0.13264124]
[1734035122077,2.58563,3867.6,3866.7,0.13264124]
[1734035122588,3.42025354,3868.0,3866.8,0.8063]
[1734035122791,2.23605466,3867.9,3866.8,0.8063]
[1734035123011,3.42025354,3868.0,3866.8,0.8063]
[1734035123310,0.89441941,3867.9,3866.8,0.8063]
[1734035123608,0.89441941,3867.9,3866.8,1.45910936]
[1734035123609,2.58572,3867.4,3866.8,1.45910936]
[1734035123899,2.58558,3867.6,3866.8,0.8063]
[1734035124801,2.58546,3867.8,3866.9,0.02585738]
[1734035125017,2.58526,3868.1,3866.9,2.06882]
[1734035125218,2.58526,3868.1,3867.0,0.8321552]
[1734035125503,2.58526,3868.1,3867.1,0.29009752]
[1734035126301,1.07245219,3868.6,3867.2,0.8063]
[1734035126464,3.65730219,3868.7,3867.4,0.8063]
[1734035126660,2.58485,3868.7,3867.6,0.8063]
[1734035126904,2.58472,3868.9,3867.8,0.8063]
[1734035127074,1.07245219,3869.4,3867.4,3.0]
[1734035127075,3.65673219,3869.6,3868.2,0.8063]
[1734035127293,2.58428,3869.6,3868.5,0.8063]
[1734035127508,0.7697,3869.9,3868.7,0.8063]
[1734035127673,2.58411,3869.8,3868.7,2.87416]
[1734035127866,1.84215219,3870.2,3868.7,0.8063]
[1734035127867,2.58418,3869.7,3868.7,0.8063]
[1734035129820,2.34780135,3870.3,3867.8,3.0]
[1734035129821,2.58472,3868.9,3867.8,3.0]
[1734035130113,2.34780135,3868.8,3868.0,0.8063]
[1734035130337,0.7697,3869.0,3868.0,0.8063]
[1734035130488,2.58463,3869.1,3868.0,0.8063]
[1734035130671,2.58464,3869.0,3868.0,0.8063]
[1734035130870,0.7509,3869.5,3868.0,0.8063]
[1734035131071,2.34780135,3869.2,3868.0,0.8063]
[1734035131373,2.58484,3868.7,3868.0,0.8063]
[1734035132823,0.62058226,3869.4,3868.0,0.8063]
[1734035132985,2.58464,3869.1,3868.0,0.8063]
[1734035134305,3.33503,3869.8,3868.2,2.34780135]
[1734035134495,2.58429,3869.6,3868.4,0.8027]
[1734035134698,2.58429,3869.6,3868.3,3.34089649]
[1734035134699,2.58429,3869.6,3868.6,0.8027]
[1734035135173,2.58412,3869.8,3868.6,0.8027]
[1734035135390,2.58412,3869.8,3868.7,2.06786]
[1734035135605,2.58412,3869.8,3868.8,0.8027]
[1734035135827,2.58395,3870.1,3868.9,2.06771]
[1734035136192,2.58401,3870.0,3868.9,2.06771]
[1734035136794,0.7509,3870.2,3868.8,1.089756]
[1734035136795,2.58419,3869.7,3868.8,1.089756]
[1734035137121,2.58423,3869.7,3868.8,0.8027]
[1734035138542,2.5841,3869.9,3868.8,0.8027]
[1734035138824,2.58411,3869.8,3868.8,1.14076083]
[1734035139401,0.7509,3870.2,3868.8,1.14076083]
[1734035139402,2.58399,3870.0,3868.8,1.14076083]
[1734035139728,3.41465,3870.5,3869.1,3.0]
[1734035140049,2.5837,3870.5,3869.3,0.8058]
[1734035140335,2.5837,3870.5,3869.3,2.87335]
[1734035141585,2.58371,3870.4,3869.4,3.0]
[1734035141924,2.58363,3870.6,3869.5,0.8058]
[1734035142113,0.49314314,3870.5,3869.5,0.8058]
[1734035142309,2.58372,3870.4,3869.5,0.8058]
[1734035142897,0.7503,3871.1,3869.5,0.8058]
[1734035143099,3.33356,3871.1,3869.6,0.7832]
[1734035143311,0.7503,3871.1,3869.6,0.7832]
[1734035143510,2.58366,3870.5,3869.6,0.7832]
[1734035143827,2.58366,3870.5,3869.7,0.37832]
[1734035145313,2.58331,3871.0,3869.7,0.37832]
[1734035145552,2.58358,3870.6,3869.7,0.37832]
[1734035146643,2.58358,3870.6,3869.8,0.8186]
[1734035146937,0.7503,3871.1,3869.8,0.8186]
[1734035146938,2.58365,3870.5,3869.8,0.8186]
[1734035147538,2.58354,3870.7,3869.8,1.107204]
[1734035148371,2.58336,3871.0,3870.0,0.7797]
[1734035149469,2.58336,3871.0,3870.1,0.7797]
[1734035149828,2.58318,3871.2,3870.2,0.7797]
[1734035150129,2.58318,3871.2,3870.3,0.80553451]
[1734035150329,2.58318,3871.2,3870.3,1.39279896]
[1734035150581,2.58299,3871.5,3870.3,1.36696445]
[1734035150883,0.7635,3871.8,3870.3,0.7797]
[1734035151034,2.5832,3871.2,3870.3,0.7797]
[1734035151227,2.5832,3871.2,3870.4,0.02583449]
[1734035151472,5.69413135,3871.8,3870.5,0.7797]
[1734035151743,2.58351,3870.7,3869.1,2.84736]
[1734035151960,2.58317,3871.2,3869.1,2.84736]
[1734035151961,2.60615235,3870.6,3869.1,0.7797]
[1734035152143,2.58382,3870.3,3869.1,0.7797]
[1734035152355,4.93174135,3870.1,3869.1,0.7797]
[1734035152734,2.58424,3869.6,3869.1,0.7797]
[1734035152931,2.58433,3869.5,3869.1,0.7797]
[1734035153270,2.58431,3869.5,3869.1,0.7797]
[1734035153843,2.58419,3869.7,3869.1,0.7797]
[1734035154360,2.58428,3869.6,3869.1,0.7797]
[1734035154559,2.34780135,3870.1,3869.1,0.7797]
[1734035154763,2.58446,3869.3,3868.4,0.7797]
[1734035155368,0.31113014,3870.0,3868.4,0.7797]
[1734035155369,2.58432,3869.5,3868.4,1.30536327]
[1734035155532,0.31113014,3870.0,3868.5,0.7806]
[1734035155745,2.58399,3870.0,3868.6,0.7806]
[1734035155932,2.58399,3870.0,3868.4,2.87346462]
[1734035155933,2.58404,3870.0,3868.8,2.06782]
[1734035156137,2.58407,3869.9,3868.9,0.7806]
[1734035156336,2.58412,3869.8,3868.9,0.7806]
[1734035156875,2.58417,3869.8,3868.9,0.7806]
[1734035157257,2.58417,3869.8,3868.9,1.065446]
[1734035158876,2.53417,3869.8,3868.9,1.065446]
[1734035159238,0.7635,3870.2,3868.9,1.065446]
[1734035159239,2.58385,3870.2,3869.1,2.06765]
[1734035159460,2.58372,3870.4,3869.2,2.06761]
[1734035159658,2.58372,3870.4,3869.4,0.7806]
[1734035159659,2.58377,3870.4,3869.4,0.7806]
[1734035160076,2.58377,3870.4,3869.5,0.7806]